[Event "Titled Tuesday Blitz February 28 Late 2023"]
[White "Gatterer, Florian"]
[Black "Trent, Lawrence"]
[WhiteFideId "811688"]
[BlackFideId "408638"]
[WhiteElo "2221"]
[BlackElo "2458"]
[Result "0-1"]
[Round "02"]
[TimeControl "180+2"]
[Date "2023.02.28"]
[WhiteClock "0:00:01"]
[BlackClock "0:02:00"]

1. Nf3 {[%clk 0:02:59]}  Nf6 {[%clk 0:02:59]} 2. g3 {[%clk 0:02:58]}  e6 {[%clk 0:03:00]} 3. Bg2 {[%clk 0:02:58]}  b6 {[%clk 0:03:00]} 4. O-O {[%clk 0:02:57]}  Bb7 {[%clk 0:03:01]} 5. c4 {[%clk 0:02:58]}  c5 {[%clk 0:02:59]} 6. Nc3 {[%clk 0:02:57]}  Be7 {[%clk 0:02:57]} 7. d4 {[%clk 0:02:56]}  cxd4 {[%clk 0:02:58]} 8. Qxd4 {[%clk 0:02:57]}  d6 {[%clk 0:02:58]} 9. b3 {[%clk 0:02:55]}  a6 {[%clk 0:02:58]} 10. Ba3 {[%clk 0:02:53]}  O-O {[%clk 0:02:53]} 11. Rfd1 {[%clk 0:02:51]}  Ne8 {[%clk 0:02:53]} 12. Rac1 {[%clk 0:02:33]}  Ra7 {[%clk 0:02:52]} 13. Qd2 {[%clk 0:01:58]}  Nd7 {[%clk 0:02:50]} 14. e4 {[%clk 0:01:52]}  Qa8 {[%clk 0:02:49]} 15. Nd4 {[%clk 0:01:50]}  Nc5 {[%clk 0:02:48]} 16. Re1 {[%clk 0:01:48]}  Nf6 {[%clk 0:02:48]} 17. f3 {[%clk 0:01:45]}  Rc8 {[%clk 0:02:48]} 18. Rcd1 {[%clk 0:01:35]}  h6 {[%clk 0:02:43]} 19. Kh1 {[%clk 0:01:33]}  Kh8 {[%clk 0:02:42]} 20. Kg1 {[%clk 0:01:33]}  Rg8 {[%clk 0:02:40]} 21. Kh1 {[%clk 0:01:33]}  g5 {[%clk 0:02:39]} 22. h3 {[%clk 0:01:29]}  Nh5 {[%clk 0:02:36]} 23. Kh2 {[%clk 0:01:29]}  Qb8 {[%clk 0:02:36]} 24. Qf2 {[%clk 0:01:21]}  Bf6 {[%clk 0:02:35]} 25. Nce2 {[%clk 0:01:11]}  d5 {[%clk 0:02:32]} 26. cxd5 {[%clk 0:01:03]}  exd5 {[%clk 0:02:31]} 27. exd5 {[%clk 0:00:54]}  Bxd5 {[%clk 0:02:14]} 28. Nf5 {[%clk 0:00:53]}  Rd8 {[%clk 0:02:14]} 29. Nxh6 {[%clk 0:00:49]}  Rad7 {[%clk 0:02:13]} 30. Rxd5 {[%clk 0:00:44]}  Rxd5 {[%clk 0:02:11]} 31. Nxf7+ {[%clk 0:00:43]}  Kg7 {[%clk 0:02:12]} 32. Nxd8 {[%clk 0:00:43]}  Qxd8 {[%clk 0:02:13]} 33. Bxc5 {[%clk 0:00:29]}  Rxc5 {[%clk 0:02:14]} 34. Ng1 {[%clk 0:00:17]}  Be5 {[%clk 0:02:12]} 35. Rxe5 {[%clk 0:00:16]}  Rxe5 {[%clk 0:02:12]} 36. Qb2 {[%clk 0:00:16]}  Qf6 {[%clk 0:02:12]} 37. Ne2 {[%clk 0:00:12]}  Re3 {[%clk 0:02:08]} 38. Qd2 {[%clk 0:00:11]}  Qe5 {[%clk 0:02:08]} 39. Qd7+ {[%clk 0:00:11]}  Kg6 {[%clk 0:02:08]} 40. Qc6+ {[%clk 0:00:09]}  Nf6 {[%clk 0:02:08]} 41. Ng1 {[%clk 0:00:06]}  Qc5 {[%clk 0:02:01]} 42. Qb7 {[%clk 0:00:02]}  Re1 {[%clk 0:02:01]} 43. f4 {[%clk 0:00:01]}  Qxg1# {[%clk 0:02:00]} 0-1


[Site "https://www.chess.com"]

[Event "Titled Tuesday Blitz February 28 Late 2023"]
[White "Fernandez Garcia, Gumersindo"]
[Black "Gerzhoy, Leonid"]
[WhiteFideId "24516740"]
[BlackFideId "2806126"]
[WhiteElo "2093"]
[BlackElo "2626"]
[Result "0-1"]
[Round "02"]
[TimeControl "180+2"]
[Date "2023.02.28"]
[WhiteClock "0:00:11"]
[BlackClock "0:00:56"]

1. e4 {[%clk 0:03:00]}  d6 {[%clk 0:02:59]} 2. d4 {[%clk 0:02:58]}  Nf6 {[%clk 0:02:59]} 3. Nc3 {[%clk 0:02:58]}  e5 {[%clk 0:02:59]} 4. dxe5 {[%clk 0:02:57]}  dxe5 {[%clk 0:02:59]} 5. Qxd8+ {[%clk 0:02:58]}  Kxd8 {[%clk 0:02:59]} 6. Bc4 {[%clk 0:02:58]}  Bb4 {[%clk 0:02:58]} 7. f3 {[%clk 0:02:54]}  Ke7 {[%clk 0:02:57]} 8. Ne2 {[%clk 0:02:50]}  Be6 {[%clk 0:02:57]} 9. Bxe6 {[%clk 0:02:50]}  Kxe6 {[%clk 0:02:56]} 10. a3 {[%clk 0:02:50]}  Ba5 {[%clk 0:02:55]} 11. Be3 {[%clk 0:02:49]}  Nc6 {[%clk 0:02:54]} 12. O-O-O {[%clk 0:02:49]}  Rhd8 {[%clk 0:02:53]} 13. Rxd8 {[%clk 0:02:48]}  Rxd8 {[%clk 0:02:52]} 14. Rd1 {[%clk 0:02:49]}  Rxd1+ {[%clk 0:02:50]} 15. Kxd1 {[%clk 0:02:50]}  Ne8 {[%clk 0:02:44]} 16. b4 {[%clk 0:02:48]}  Bb6 {[%clk 0:02:44]} 17. Bxb6 {[%clk 0:02:49]}  axb6 {[%clk 0:02:43]} 18. Nd5 {[%clk 0:02:49]}  Ne7 {[%clk 0:02:40]} 19. c4 {[%clk 0:02:43]}  Nxd5 {[%clk 0:02:39]} 20. cxd5+ {[%clk 0:02:32]}  Kd7 {[%clk 0:02:38]} 21. Kc2 {[%clk 0:02:30]}  Nd6 {[%clk 0:02:36]} 22. Kd3 {[%clk 0:02:24]}  b5 {[%clk 0:02:34]} 23. f4 {[%clk 0:02:10]}  f6 {[%clk 0:02:10]} 24. fxe5 {[%clk 0:02:08]}  fxe5 {[%clk 0:02:10]} 25. Nc3 {[%clk 0:02:08]}  c6 {[%clk 0:02:09]} 26. a4 {[%clk 0:02:02]}  bxa4 {[%clk 0:02:03]} 27. Nxa4 {[%clk 0:02:03]}  cxd5 {[%clk 0:02:00]} 28. exd5 {[%clk 0:01:57]}  Kc7 {[%clk 0:01:48]} 29. Nc5 {[%clk 0:01:55]}  g6 {[%clk 0:01:46]} 30. g3 {[%clk 0:01:49]}  Kd8 {[%clk 0:01:32]} 31. Ne4 {[%clk 0:01:16]}  Ke7 {[%clk 0:01:32]} 32. g4 {[%clk 0:01:12]}  h6 {[%clk 0:01:20]} 33. h4 {[%clk 0:01:08]}  Nxe4 {[%clk 0:01:14]} 34. Kxe4 {[%clk 0:01:07]}  Kd6 {[%clk 0:01:14]} 35. b5 {[%clk 0:01:01]}  b6 {[%clk 0:01:12]} 36. h5 {[%clk 0:00:58]}  g5 {[%clk 0:01:10]} 37. Kf5 {[%clk 0:00:30]}  Kxd5 {[%clk 0:01:10]} 38. Kg6 {[%clk 0:00:31]}  e4 {[%clk 0:01:10]} 39. Kxh6 {[%clk 0:00:32]}  e3 {[%clk 0:01:10]} 40. Kxg5 {[%clk 0:00:16]}  e2 {[%clk 0:01:10]} 41. h6 {[%clk 0:00:16]}  e1=Q {[%clk 0:01:09]} 42. h7 {[%clk 0:00:14]}  Qe7+ {[%clk 0:00:59]} 43. Kh6 {[%clk 0:00:14]}  Qf6+ {[%clk 0:00:58]} 44. Kh5 {[%clk 0:00:11]}  Qg7 {[%clk 0:00:56]} 45. g5 {[%clk 0:00:11]}  Qxh7+ {[%clk 0:00:56]} 0-1


[Site "https://www.chess.com"]

[Event "Titled Tuesday Blitz February 28 Late 2023"]
[White "Keymer, Vincent"]
[Black "Redzisz, Michal"]
[WhiteFideId "12940690"]
[BlackFideId "21816107"]
[WhiteElo "2651"]
[BlackElo "2175"]
[Result "1-0"]
[Round "02"]
[TimeControl "180+2"]
[Date "2023.02.28"]
[WhiteClock "0:00:20"]
[BlackClock "0:00:38"]

1. a3 {[%clk 0:03:00]}  a5 {[%clk 0:02:55]} 2. Nf3 {[%clk 0:03:00]}  Nf6 {[%clk 0:02:55]} 3. c4 {[%clk 0:02:59]}  g6 {[%clk 0:02:53]} 4. g3 {[%clk 0:02:53]}  b6 {[%clk 0:02:53]} 5. Bg2 {[%clk 0:02:53]}  Bb7 {[%clk 0:02:53]} 6. O-O {[%clk 0:02:54]}  Bg7 {[%clk 0:02:53]} 7. d4 {[%clk 0:02:54]}  O-O {[%clk 0:02:51]} 8. d5 {[%clk 0:02:54]}  Na6 {[%clk 0:02:49]} 9. Nc3 {[%clk 0:02:53]}  Nc5 {[%clk 0:02:48]} 10. Nd4 {[%clk 0:02:51]}  a4 {[%clk 0:02:38]} 11. e4 {[%clk 0:02:46]}  e5 {[%clk 0:02:30]} 12. Ndb5 {[%clk 0:02:45]}  Ne8 {[%clk 0:02:26]} 13. Be3 {[%clk 0:02:43]}  c6 {[%clk 0:02:18]} 14. Bxc5 {[%clk 0:01:56]}  bxc5 {[%clk 0:02:17]} 15. Nxa4 {[%clk 0:01:57]}  cxb5 {[%clk 0:02:14]} 16. Nxc5 {[%clk 0:01:50]}  Ba6 {[%clk 0:02:10]} 17. Nxa6 {[%clk 0:01:46]}  Rxa6 {[%clk 0:02:09]} 18. cxb5 {[%clk 0:01:47]}  Ra8 {[%clk 0:02:05]} 19. a4 {[%clk 0:01:44]}  Nd6 {[%clk 0:02:05]} 20. b4 {[%clk 0:01:43]}  f5 {[%clk 0:02:05]} 21. Qd3 {[%clk 0:01:36]}  fxe4 {[%clk 0:01:49]} 22. Bxe4 {[%clk 0:01:32]}  Qb6 {[%clk 0:01:37]} 23. Kg2 {[%clk 0:01:20]}  Rfc8 {[%clk 0:01:15]} 24. a5 {[%clk 0:00:35]}  Qxb5 {[%clk 0:01:08]} 25. Qxb5 {[%clk 0:00:34]}  Nxb5 {[%clk 0:01:09]} 26. d6 {[%clk 0:00:28]}  Ra6 {[%clk 0:01:08]} 27. Bb7 {[%clk 0:00:27]}  Rcc6 {[%clk 0:01:00]} 28. Bxc6 {[%clk 0:00:25]}  Rxc6 {[%clk 0:00:55]} 29. Rfc1 {[%clk 0:00:25]}  Rxd6 {[%clk 0:00:50]} 30. a6 {[%clk 0:00:25]}  e4 {[%clk 0:00:46]} 31. a7 {[%clk 0:00:24]}  Nxa7 {[%clk 0:00:46]} 32. Rxa7 {[%clk 0:00:25]}  Rd2 {[%clk 0:00:41]} 33. Rc8+ {[%clk 0:00:20]}  Kf7 {[%clk 0:00:41]} 34. Rc4 {[%clk 0:00:21]}  Bd4 {[%clk 0:00:38]} 35. Rxd7+ {[%clk 0:00:20]} 1-0


[Site "https://www.chess.com"]

[Event "Titled Tuesday Blitz February 28 Late 2023"]
[White "Gadimbayli, Abdulla"]
[Black "Hajiyev, Kanan"]
[WhiteFideId "13404938"]
[BlackFideId "13404148"]
[WhiteElo "2390"]
[BlackElo "2103"]
[Result "1-0"]
[Round "02"]
[TimeControl "180+2"]
[Date "2023.02.28"]
[WhiteClock "0:01:09"]
[BlackClock "0:00:06"]

1. e4 {[%clk 0:03:00]}  c6 {[%clk 0:02:59]} 2. Nf3 {[%clk 0:03:01]}  d5 {[%clk 0:03:00]} 3. exd5 {[%clk 0:03:02]}  cxd5 {[%clk 0:03:01]} 4. Ne5 {[%clk 0:03:02]}  Nc6 {[%clk 0:03:01]} 5. d4 {[%clk 0:03:02]}  Nf6 {[%clk 0:02:58]} 6. c3 {[%clk 0:03:02]}  a6 {[%clk 0:02:40]} 7. Bd3 {[%clk 0:02:59]}  g6 {[%clk 0:02:36]} 8. Nd2 {[%clk 0:02:59]}  Bg7 {[%clk 0:02:37]} 9. Nxc6 {[%clk 0:02:58]}  bxc6 {[%clk 0:02:36]} 10. O-O {[%clk 0:02:59]}  O-O {[%clk 0:02:37]} 11. Re1 {[%clk 0:03:00]}  Bf5 {[%clk 0:02:33]} 12. Bxf5 {[%clk 0:02:48]}  gxf5 {[%clk 0:02:34]} 13. Nb3 {[%clk 0:02:49]}  e6 {[%clk 0:02:28]} 14. Bg5 {[%clk 0:02:48]}  Qb6 {[%clk 0:02:23]} 15. Qe2 {[%clk 0:02:42]}  Rab8 {[%clk 0:02:17]} 16. Bf4 {[%clk 0:02:42]}  Rb7 {[%clk 0:02:08]} 17. Nc5 {[%clk 0:02:41]}  Ra7 {[%clk 0:02:01]} 18. Nd3 {[%clk 0:02:37]}  a5 {[%clk 0:01:55]} 19. Bd6 {[%clk 0:02:37]}  Rb7 {[%clk 0:01:30]} 20. Bxf8 {[%clk 0:02:36]}  Bxf8 {[%clk 0:01:31]} 21. a4 {[%clk 0:02:30]}  Ne4 {[%clk 0:01:26]} 22. f3 {[%clk 0:02:30]}  Nf6 {[%clk 0:01:25]} 23. Kh1 {[%clk 0:02:28]}  Bd6 {[%clk 0:01:25]} 24. Reb1 {[%clk 0:02:27]}  Qb3 {[%clk 0:01:24]} 25. Nc1 {[%clk 0:02:26]}  Qb6 {[%clk 0:01:23]} 26. b4 {[%clk 0:02:26]}  Nh5 {[%clk 0:01:05]} 27. Nd3 {[%clk 0:02:25]}  Qa6 {[%clk 0:00:59]} 28. Nf4 {[%clk 0:02:15]}  Qxe2 {[%clk 0:00:57]} 29. Nxe2 {[%clk 0:02:16]}  Kf8 {[%clk 0:00:45]} 30. bxa5 {[%clk 0:02:10]}  Ra7 {[%clk 0:00:43]} 31. Rb6 {[%clk 0:02:11]}  Rxa5 {[%clk 0:00:35]} 32. Rxc6 {[%clk 0:02:09]}  Ke7 {[%clk 0:00:35]} 33. Rb6 {[%clk 0:02:04]}  Ra7 {[%clk 0:00:29]} 34. a5 {[%clk 0:02:02]}  Bc7 {[%clk 0:00:29]} 35. Rb5 {[%clk 0:02:02]}  Kd7 {[%clk 0:00:25]} 36. a6 {[%clk 0:02:02]}  Kc6 {[%clk 0:00:25]} 37. Rc5+ {[%clk 0:01:57]}  Kd6 {[%clk 0:00:24]} 38. Nc1 {[%clk 0:01:37]}  Nf6 {[%clk 0:00:20]} 39. Nd3 {[%clk 0:01:36]}  Nd7 {[%clk 0:00:20]} 40. Rb5 {[%clk 0:01:36]}  Bb6 {[%clk 0:00:19]} 41. Nb4 {[%clk 0:01:33]}  h5 {[%clk 0:00:13]} 42. Rb1 {[%clk 0:01:30]}  h4 {[%clk 0:00:09]} 43. h3 {[%clk 0:01:11]}  f6 {[%clk 0:00:09]} 44. Nxd5 {[%clk 0:01:07]}  exd5 {[%clk 0:00:05]} 45. Rxb6+ {[%clk 0:01:08]}  Nxb6 {[%clk 0:00:06]} 46. Rxb6+ {[%clk 0:01:09]}  Ke7 {[%clk 0:00:06]} 47. Rb7+ {[%clk 0:01:09]} 1-0


[Site "https://www.chess.com"]

[Event "Titled Tuesday Blitz February 28 Late 2023"]
[White "Makridis, Dimitrios"]
[Black "Chan, Kim Yew"]
[WhiteFideId "25864475"]
[BlackFideId "5717981"]
[WhiteElo "2277"]
[BlackElo "2206"]
[Result "1-0"]
[Round "02"]
[TimeControl "180+2"]
[Date "2023.02.28"]
[WhiteClock "0:01:24"]
[BlackClock "0:00:35"]

1. Nf3 {[%clk 0:02:59]}  Nf6 {[%clk 0:02:57]} 2. c4 {[%clk 0:02:56]}  b6 {[%clk 0:02:54]} 3. e3 {[%clk 0:02:57]}  Bb7 {[%clk 0:02:54]} 4. b3 {[%clk 0:02:58]}  g6 {[%clk 0:02:54]} 5. Bb2 {[%clk 0:02:58]}  Bg7 {[%clk 0:02:54]} 6. Be2 {[%clk 0:02:59]}  O-O {[%clk 0:02:54]} 7. O-O {[%clk 0:02:59]}  c5 {[%clk 0:02:52]} 8. d4 {[%clk 0:02:57]}  cxd4 {[%clk 0:02:51]} 9. Nxd4 {[%clk 0:02:58]}  d6 {[%clk 0:02:50]} 10. Nc3 {[%clk 0:02:57]}  Nc6 {[%clk 0:02:47]} 11. Bf3 {[%clk 0:02:56]}  Qd7 {[%clk 0:02:44]} 12. Nxc6 {[%clk 0:02:45]}  Bxc6 {[%clk 0:02:44]} 13. Bxc6 {[%clk 0:02:46]}  Qxc6 {[%clk 0:02:44]} 14. Rc1 {[%clk 0:02:45]}  Rfd8 {[%clk 0:02:42]} 15. Qd4 {[%clk 0:02:44]}  Rac8 {[%clk 0:02:40]} 16. Nd5 {[%clk 0:02:43]}  Qd7 {[%clk 0:02:33]} 17. Rfd1 {[%clk 0:02:32]}  Qe8 {[%clk 0:02:13]} 18. h3 {[%clk 0:02:14]}  Qf8 {[%clk 0:02:12]} 19. Qd2 {[%clk 0:02:05]}  Nxd5 {[%clk 0:01:56]} 20. cxd5 {[%clk 0:02:06]}  Bxb2 {[%clk 0:01:34]} 21. Qxb2 {[%clk 0:02:05]}  Qe8 {[%clk 0:01:35]} 22. Rd2 {[%clk 0:01:55]}  Rxc1+ {[%clk 0:01:23]} 23. Qxc1 {[%clk 0:01:56]}  Rc8 {[%clk 0:01:24]} 24. Rc2 {[%clk 0:01:55]}  Rxc2 {[%clk 0:01:24]} 25. Qxc2 {[%clk 0:01:56]}  Qb5 {[%clk 0:01:24]} 26. Qc7 {[%clk 0:01:53]}  Qxd5 {[%clk 0:01:12]} 27. Qxe7 {[%clk 0:01:51]}  a5 {[%clk 0:01:09]} 28. Qd8+ {[%clk 0:01:50]}  Kg7 {[%clk 0:01:09]} 29. Qxb6 {[%clk 0:01:51]}  Qd1+ {[%clk 0:01:08]} 30. Kh2 {[%clk 0:01:51]}  Qe2 {[%clk 0:01:08]} 31. Qd4+ {[%clk 0:01:47]}  Kg8 {[%clk 0:01:08]} 32. a4 {[%clk 0:01:39]}  Qxf2 {[%clk 0:01:08]} 33. Qb6 {[%clk 0:01:32]}  Qb2 {[%clk 0:00:38]} 34. Qxa5 {[%clk 0:01:24]}  Qe5+ {[%clk 0:00:35]} 35. Qxe5 {[%clk 0:01:24]} 1-0


[Site "https://www.chess.com"]

[Event "Titled Tuesday Blitz February 28 Late 2023"]
[White "Beerdsen, Thomas"]
[Black "Li, Hui"]
[WhiteFideId "1030108"]
[BlackFideId "15400310"]
[WhiteElo "2547"]
[BlackElo "1967"]
[Result "1-0"]
[Round "02"]
[TimeControl "180+2"]
[Date "2023.02.28"]
[WhiteClock "0:01:18"]
[BlackClock "0:00:02"]

1. a4 {[%clk 0:03:00]}  d5 {[%clk 0:02:57]} 2. Ra3 {[%clk 0:03:01]}  e6 {[%clk 0:02:52]} 3. Rg3 {[%clk 0:03:02]}  Nf6 {[%clk 0:02:51]} 4. e3 {[%clk 0:03:02]}  Ne4 {[%clk 0:02:48]} 5. b3 {[%clk 0:03:02]}  Nxg3 {[%clk 0:02:48]} 6. hxg3 {[%clk 0:03:03]}  Be7 {[%clk 0:02:47]} 7. Qh5 {[%clk 0:02:55]}  Nd7 {[%clk 0:02:40]} 8. Bb2 {[%clk 0:02:53]}  Nf6 {[%clk 0:02:20]} 9. Qg5 {[%clk 0:02:50]}  Rg8 {[%clk 0:02:13]} 10. Nf3 {[%clk 0:02:44]}  h6 {[%clk 0:02:12]} 11. Qf4 {[%clk 0:02:42]}  Qd6 {[%clk 0:01:59]} 12. Be5 {[%clk 0:02:38]}  Qd7 {[%clk 0:01:51]} 13. Rxh6 {[%clk 0:02:26]}  gxh6 {[%clk 0:01:50]} 14. Bxf6 {[%clk 0:02:27]}  Bxf6 {[%clk 0:01:49]} 15. Qxf6 {[%clk 0:02:28]}  Qe7 {[%clk 0:01:49]} 16. Qf4 {[%clk 0:02:23]}  f6 {[%clk 0:01:33]} 17. Nc3 {[%clk 0:02:20]}  a6 {[%clk 0:01:25]} 18. Be2 {[%clk 0:02:06]}  e5 {[%clk 0:00:54]} 19. Qxh6 {[%clk 0:02:06]}  Be6 {[%clk 0:00:52]} 20. Qh5+ {[%clk 0:02:00]}  Qf7 {[%clk 0:00:48]} 21. Qh4 {[%clk 0:01:43]}  O-O-O {[%clk 0:00:48]} 22. Qb4 {[%clk 0:01:44]}  Rh8 {[%clk 0:00:44]} 23. Nh4 {[%clk 0:01:43]}  d4 {[%clk 0:00:42]} 24. Ne4 {[%clk 0:01:37]}  Bd5 {[%clk 0:00:25]} 25. Nc5 {[%clk 0:01:31]}  Rhg8 {[%clk 0:00:14]} 26. Nf5 {[%clk 0:01:30]}  Rg5 {[%clk 0:00:11]} 27. e4 {[%clk 0:01:24]}  Bc6 {[%clk 0:00:11]} 28. Bc4 {[%clk 0:01:24]}  Qh7 {[%clk 0:00:10]} 29. Be6+ {[%clk 0:01:24]}  Kb8 {[%clk 0:00:10]} 30. d3 {[%clk 0:01:18]}  b6 {[%clk 0:00:06]} 31. Nxa6+ {[%clk 0:01:17]}  Ka7 {[%clk 0:00:06]} 32. Qc4 {[%clk 0:01:15]}  Qh1+ {[%clk 0:00:05]} 33. Kd2 {[%clk 0:01:15]}  Bb7 {[%clk 0:00:05]} 34. Nxc7 {[%clk 0:01:15]}  Qxg2 {[%clk 0:00:04]} 35. Nb5+ {[%clk 0:01:16]}  Ka8 {[%clk 0:00:03]} 36. Qc7 {[%clk 0:01:17]}  Qxf2+ {[%clk 0:00:03]} 37. Kc1 {[%clk 0:01:18]}  Qe1+ {[%clk 0:00:03]} 38. Kb2 {[%clk 0:01:18]}  Qa5 {[%clk 0:00:02]} 39. Qxd8+ {[%clk 0:01:18]} 1-0


[Site "https://www.chess.com"]

[Event "Titled Tuesday Blitz February 28 Late 2023"]
[White "Pino Perez, Lazaro"]
[Black "Blomqvist, Erik"]
[WhiteFideId "3517055"]
[BlackFideId "1709437"]
[WhiteElo "2170"]
[BlackElo "2436"]
[Result "1/2-1/2"]
[Round "02"]
[TimeControl "180+2"]
[Date "2023.02.28"]
[WhiteClock "0:00:04"]
[BlackClock "0:00:07"]

1. d4 {[%clk 0:03:00]}  d5 {[%clk 0:03:00]} 2. Bf4 {[%clk 0:03:00]}  c5 {[%clk 0:02:58]} 3. e3 {[%clk 0:03:01]}  Nc6 {[%clk 0:02:59]} 4. Nf3 {[%clk 0:03:00]}  Bg4 {[%clk 0:02:54]} 5. c3 {[%clk 0:02:51]}  e6 {[%clk 0:02:49]} 6. Nbd2 {[%clk 0:02:46]}  cxd4 {[%clk 0:02:46]} 7. exd4 {[%clk 0:02:47]}  Bd6 {[%clk 0:02:45]} 8. Bxd6 {[%clk 0:02:42]}  Qxd6 {[%clk 0:02:46]} 9. Bd3 {[%clk 0:02:42]}  Nge7 {[%clk 0:02:41]} 10. O-O {[%clk 0:02:35]}  Bh5 {[%clk 0:02:34]} 11. Re1 {[%clk 0:02:31]}  O-O {[%clk 0:02:29]} 12. a4 {[%clk 0:02:21]}  f6 {[%clk 0:02:07]} 13. Qb3 {[%clk 0:01:57]}  Qd7 {[%clk 0:01:49]} 14. a5 {[%clk 0:01:48]}  a6 {[%clk 0:01:37]} 15. Qa4 {[%clk 0:01:31]}  Kh8 {[%clk 0:01:32]} 16. b4 {[%clk 0:01:23]}  Qd6 {[%clk 0:01:08]} 17. b5 {[%clk 0:01:11]}  axb5 {[%clk 0:01:06]} 18. Qxb5 {[%clk 0:01:12]}  e5 {[%clk 0:00:54]} 19. c4 {[%clk 0:01:11]}  exd4 {[%clk 0:00:28]} 20. cxd5 {[%clk 0:01:10]}  Nxd5 {[%clk 0:00:29]} 21. Be4 {[%clk 0:00:47]}  Nc3 {[%clk 0:00:28]} 22. Qxh5 {[%clk 0:00:42]}  Nxe4 {[%clk 0:00:26]} 23. Nxe4 {[%clk 0:00:43]}  Qf4 {[%clk 0:00:23]} 24. g3 {[%clk 0:00:39]}  Qc7 {[%clk 0:00:23]} 25. Nc5 {[%clk 0:00:37]}  Rxa5 {[%clk 0:00:17]} 26. Ne6 {[%clk 0:00:33]}  Rxh5 {[%clk 0:00:14]} 27. Nxc7 {[%clk 0:00:34]}  d3 {[%clk 0:00:07]} 28. Rad1 {[%clk 0:00:25]}  Nb4 {[%clk 0:00:06]} 29. Re4 {[%clk 0:00:24]}  Nd5 {[%clk 0:00:03]} 30. Nxd5 {[%clk 0:00:16]}  Rxd5 {[%clk 0:00:04]} 31. Rd4 {[%clk 0:00:16]}  Rxd4 {[%clk 0:00:04]} 32. Nxd4 {[%clk 0:00:16]}  Rd8 {[%clk 0:00:05]} 33. Rxd3 {[%clk 0:00:15]}  Kg8 {[%clk 0:00:04]} 34. Kf1 {[%clk 0:00:14]}  b5 {[%clk 0:00:03]} 35. Ke2 {[%clk 0:00:15]}  b4 {[%clk 0:00:04]} 36. Nb3 {[%clk 0:00:15]}  Re8+ {[%clk 0:00:04]} 37. Kd2 {[%clk 0:00:15]}  Kf7 {[%clk 0:00:04]} 38. Rd4 {[%clk 0:00:15]}  Rb8 {[%clk 0:00:03]} 39. Rd7+ {[%clk 0:00:14]}  Kg6 {[%clk 0:00:03]} 40. Rd4 {[%clk 0:00:15]}  h5 {[%clk 0:00:03]} 41. h4 {[%clk 0:00:16]}  Kf5 {[%clk 0:00:03]} 42. Kd3 {[%clk 0:00:15]}  g5 {[%clk 0:00:03]} 43. Rc4 {[%clk 0:00:14]}  Rd8+ {[%clk 0:00:03]} 44. Kc2 {[%clk 0:00:13]}  Ra8 {[%clk 0:00:02]} 45. Nd4+ {[%clk 0:00:14]}  Kg4 {[%clk 0:00:02]} 46. Ne6+ {[%clk 0:00:12]}  Kh3 {[%clk 0:00:02]} 47. hxg5 {[%clk 0:00:13]}  fxg5 {[%clk 0:00:03]} 48. Nxg5+ {[%clk 0:00:13]}  Kg2 {[%clk 0:00:03]} 49. Ne4 {[%clk 0:00:13]}  Ra2+ {[%clk 0:00:03]} 50. Kb3 {[%clk 0:00:13]}  Re2 {[%clk 0:00:02]} 51. Kxb4 {[%clk 0:00:13]}  Kf3 {[%clk 0:00:03]} 52. Nc3 {[%clk 0:00:09]}  Rxf2 {[%clk 0:00:03]} 53. Rf4+ {[%clk 0:00:07]}  Kxg3 {[%clk 0:00:03]} 54. Rxf2 {[%clk 0:00:04]}  Kxf2 {[%clk 0:00:04]} 55. Ne4+ {[%clk 0:00:04]}  Kg2 {[%clk 0:00:05]} 56. Ng5 {[%clk 0:00:01]}  h4 {[%clk 0:00:05]} 57. Kc3 {[%clk 0:00:01]}  Kg3 {[%clk 0:00:05]} 58. Kd4 {[%clk 0:00:01]}  Kf4 {[%clk 0:00:05]} 59. Kd3 {[%clk 0:00:01]}  Kxg5 {[%clk 0:00:05]} 60. Ke2 {[%clk 0:00:02]}  Kg4 {[%clk 0:00:04]} 61. Kf2 {[%clk 0:00:02]}  Kh3 {[%clk 0:00:04]} 62. Kg1 {[%clk 0:00:03]}  Kg3 {[%clk 0:00:04]} 63. Kh1 {[%clk 0:00:03]}  h3 {[%clk 0:00:05]} 64. Kg1 {[%clk 0:00:04]}  h2+ {[%clk 0:00:06]} 65. Kh1 {[%clk 0:00:04]}  Kh3 {[%clk 0:00:07]} 1/2-1/2


[Site "https://www.chess.com"]

[Event "Titled Tuesday Blitz February 28 Late 2023"]
[White "Yang, Qindong"]
[Black "Zeman, Matyas"]
[WhiteFideId "8603758"]
[BlackFideId "364398"]
[WhiteElo "2090"]
[BlackElo "2254"]
[Result "1-0"]
[Round "02"]
[TimeControl "180+2"]
[Date "2023.02.28"]
[WhiteClock "0:01:19"]
[BlackClock "0:01:02"]

1. d4 {[%clk 0:02:57]}  Nf6 {[%clk 0:02:43]} 2. c4 {[%clk 0:02:57]}  e6 {[%clk 0:02:44]} 3. Nf3 {[%clk 0:02:55]}  d5 {[%clk 0:02:42]} 4. g3 {[%clk 0:02:55]}  Bb4+ {[%clk 0:02:41]} 5. Bd2 {[%clk 0:02:51]}  Be7 {[%clk 0:02:40]} 6. Bg2 {[%clk 0:02:51]}  O-O {[%clk 0:02:41]} 7. O-O {[%clk 0:02:51]}  Nbd7 {[%clk 0:02:37]} 8. Qc2 {[%clk 0:02:52]}  c6 {[%clk 0:02:37]} 9. Rd1 {[%clk 0:02:50]}  b6 {[%clk 0:02:35]} 10. Bf4 {[%clk 0:02:46]}  Ba6 {[%clk 0:02:33]} 11. Ne5 {[%clk 0:02:46]}  Rc8 {[%clk 0:02:32]} 12. cxd5 {[%clk 0:02:41]}  cxd5 {[%clk 0:02:32]} 13. Nc6 {[%clk 0:02:40]}  Qe8 {[%clk 0:02:27]} 14. Nxe7+ {[%clk 0:02:32]}  Qxe7 {[%clk 0:02:28]} 15. Nc3 {[%clk 0:02:32]}  Rc4 {[%clk 0:01:57]} 16. Rac1 {[%clk 0:01:57]}  Rfc8 {[%clk 0:01:56]} 17. Bd2 {[%clk 0:01:52]}  Rxd4 {[%clk 0:01:37]} 18. e3 {[%clk 0:01:47]}  Rg4 {[%clk 0:01:23]} 19. Bf3 {[%clk 0:01:39]}  Rg6 {[%clk 0:01:22]} 20. Qa4 {[%clk 0:01:36]}  Bd3 {[%clk 0:01:09]} 21. Nxd5 {[%clk 0:01:33]}  Nxd5 {[%clk 0:01:01]} 22. Rxc8+ {[%clk 0:01:26]}  Nf8 {[%clk 0:01:02]} 23. Bxd5 {[%clk 0:01:19]} 1-0


[Site "https://www.chess.com"]

[Event "Titled Tuesday Blitz February 28 Late 2023"]
[White "Alex_Sahakyan2006"]
[Black "Kovalevsky, Stanislav"]
[BlackFideId "13508598"]
[WhiteElo "2623"]
[BlackElo "2220"]
[Result "1-0"]
[Round "02"]
[TimeControl "180+2"]
[Date "2023.02.28"]
[WhiteClock "0:02:32"]
[BlackClock "0:02:37"]

1. Nf3 {[%clk 0:03:00]}  d5 {[%clk 0:02:59]} 2. d4 {[%clk 0:03:00]}  Nf6 {[%clk 0:02:59]} 3. c4 {[%clk 0:03:00]}  c6 {[%clk 0:02:59]} 4. e3 {[%clk 0:02:59]}  e6 {[%clk 0:02:57]} 5. Nc3 {[%clk 0:02:55]}  Nbd7 {[%clk 0:02:57]} 6. Bd3 {[%clk 0:02:47]}  Bd6 {[%clk 0:02:58]} 7. O-O {[%clk 0:02:46]}  O-O {[%clk 0:02:57]} 8. e4 {[%clk 0:02:45]}  dxe4 {[%clk 0:02:57]} 9. Nxe4 {[%clk 0:02:45]}  Nxe4 {[%clk 0:02:56]} 10. Bxe4 {[%clk 0:02:46]}  e5 {[%clk 0:02:51]} 11. dxe5 {[%clk 0:02:36]}  Nxe5 {[%clk 0:02:51]} 12. Nxe5 {[%clk 0:02:35]}  Bxe5 {[%clk 0:02:51]} 13. Bxh7+ {[%clk 0:02:35]}  Kxh7 {[%clk 0:02:40]} 14. Qh5+ {[%clk 0:02:35]}  Kg8 {[%clk 0:02:40]} 15. Qxe5 {[%clk 0:02:36]}  Be6 {[%clk 0:02:41]} 16. b3 {[%clk 0:02:32]}  Re8 {[%clk 0:02:38]} 17. Bb2 {[%clk 0:02:32]}  Bxc4 {[%clk 0:02:37]} 18. Qxg7# {[%clk 0:02:32]} 1-0


[Site "https://www.chess.com"]